Workbook

Sheet Intro
A1: Multi, intro hold
E3: 1 | F3: 2 | G3: 3 | H3: 4 | I3: 5 | J3: 6 | K3: 7 | L3: 8 | M3: 9 | N3: 10 | O3: 11 | P3: 12 | Q3: 13 | R3: 14 | S3: 15 | T3: 16 | V3: Total | X3: Placering
A5: Henrik Caspersen - Niels Krøjgaard | E5: 14.45 | F5: 4.56 | G5: 12.66 | H5: 9.25 | I5: 19.34 | J5: 16.8 | K5: 8.06 | L5: 15.34 | M5: 7.69 | N5: 17.55 | O5: 15.94 | P5: 13.09 | V5: =AVERAGE(E5:T5) -> 12.89416667 | X5: 1
A6: H K Sørensen - Niels Henriksen | E6: 13.08 | F6: 5.78 | G6: 12.76 | H6: 13.74 | I6: 9.06 | J6: 12.57 | K6: 4.75 | L6: 9.41 | M6: 13.05 | N6: 12.09 | O6: 14.95 | P6: 9.48 | V6: =AVERAGE(E6:T6) -> 10.89333333 | X6: 3
A8: Morten Bilde - Søren Cilleborg Bilde | E8: 10.41 | F8: 10.8 | G8: 7.34 | H8: 6.26 | I8: 10.91 | J8: 12.97 | K8: 11.68 | L8: 8.01 | M8: 8.15 | N8: 13.31 | O8: 11.11 | P8: 12.49 | V8: =AVERAGE(E8:T8) -> 10.28666667 | X8: 7
A9: Ricardo Mirasola - Jan Kølbæk | E9: 14.07 | F9: 4.78 | G9: 7.24 | H9: 10.75 | I9: 3.64 | J9: 13.34 | K9: 3.67 | L9: 9.97 | M9: 14.15 | N9: 12.39 | O9: 9.88 | P9: 9.53 | V9: =AVERAGE(E9:T9) -> 9.450833333 | X9: 11
A11: Jørgen Cilleborg Hansen - Steen Schou | E11: 11.42 | F11: 10.57 | G11: 13.91 | H11: 16.8 | I11: 0.66 | J11: 7.43 | K11: 16.33 | L11: 11.99 | M11: 6.35 | N11: 8.78 | O11: 7.63 | P11: 2.96 | V11: =AVERAGE(E11:T11) -> 9.569166667 | X11: 10
A12: Asger Bruhn - Benny Marquart | E12: 2.07 | F12: 12.63 | G12: 8.21 | H12: 3.61 | I12: 10.94 | J12: 3.2 | K12: 8.32 | L12: 10.03 | M12: 17.54 | N12: 14.22 | O12: 15.53 | P12: 14.29 | V12: =AVERAGE(E12:T12) -> 10.04916667 | X12: 8
A14: Marlene Henneberg - J.O Henneberg | E14: 13.31 | F14: 9.21 | G14: 12.62 | H14: 8.18 | I14: 10.74 | J14: 6.22 | K14: 15.25 | L14: 4.66 | M14: 5.85 | N14: 6.69 | O14: 12.37 | P14: 5.71 | V14: =AVERAGE(E14:T14) -> 9.234166667 | X14: 13
A15: Nikolaj Krefeld Hammelev - Lars Peter Damgaard | E15: 6.25 | F15: 6.47 | G15: 14.97 | H15: 17.75 | I15: 8.52 | J15: 11.5 | K15: 11.94 | L15: 10.59 | M15: 11.85 | N15: 7.61 | O15: 4.47 | P15: 17.04 | V15: =AVERAGE(E15:T15) -> 10.74666667 | X15: 4
A17: Martin Klausen - Palle Jensen | E17: 6.69 | F17: 13.53 | G17: 7.28 | H17: 7.69 | I17: 11.61 | J17: 5.72 | K17: 5.04 | L17: 3.02 | M17: 6.95 | N17: 2.45 | O17: 10.12 | P17: 7.51 | V17: =AVERAGE(E17:T17) -> 7.300833333 | X17: 16
A18: Emil Jepsen - Peter Jepsen | E18: 13.75 | F18: 10.79 | G18: 10.73 | H18: 6.82 | I18: 6.38 | J18: 14.86 | K18: 9.39 | L18: 14.94 | M18: 12.31 | N18: 7.91 | O18: 8.89 | P18: 10.47 | V18: =AVERAGE(E18:T18) -> 10.60333333 | X18: 6
A20: Jens Kofoed - Emil Buus Thomsen | E20: 17.93 | F20: 9.43 | G20: 7.38 | H20: 2.25 | I20: 8.39 | J20: 5.14 | K20: 13.93 | L20: 7.48 | M20: 7.81 | N20: 5.64 | O20: 4.06 | P20: 10.52 | V20: =AVERAGE(E20:T20) -> 8.33 | X20: 15
A21: Kresten Roland Johansen - Troels Buus Thomsen | E21: 8.58 | F21: 7.37 | G21: 5.03 | H21: 11.82 | I21: 13.62 | J21: 14.28 | K21: 14.28 | L21: 3.46 | M21: 7.99 | N21: 6.58 | O21: 5.05 | P21: 6.91 | V21: =AVERAGE(E21:T21) -> 8.7475 | X21: 14
A23: Camilla Bo Krefeld - Johan Hammelev | E23: 9.59 | F23: 15.22 | G23: 6.09 | H23: 16.39 | I23: 11.48 | J23: 13.78 | K23: 10.61 | L23: 16.98 | M23: 12.19 | N23: 13.42 | O23: 6.1 | P23: 14.83 | V23: =AVERAGE(E23:T23) -> 12.22333333 | X23: 2
A24: Lida Hulgaard - Øjvind Hulgaard | E24: 5.93 | F24: 9.2 | G24: 11.79 | H24: 3.2 | I24: 9.26 | J24: 8.5 | K24: 14.96 | L24: 5.06 | M24: 12.01 | N24: 14.36 | O24: 11.79 | P24: 10.05 | V24: =AVERAGE(E24:T24) -> 9.675833333 | X24: 9
A26: Jesper Bechsgaard - Anders Handberg Sørensen | E26: 5.55 | F26: 14.22 | G26: 12.72 | H26: 13.18 | I26: 9.09 | J26: 6.66 | K26: 5.72 | L26: 12.52 | M26: 13.65 | N26: 5.78 | O26: 8.21 | P26: 5.17 | V26: =AVERAGE(E26:T26) -> 9.3725 | X26: 12
A27: Jan Pedersen - Nils Mønsted | E27: 6.92 | F27: 15.44 | G27: 9.27 | H27: 12.31 | I27: 16.36 | J27: 7.03 | K27: 6.07 | L27: 16.54 | M27: 2.46 | N27: 11.22 | O27: 13.9 | P27: 9.95 | V27: =AVERAGE(E27:T27) -> 10.6225 | X27: 5
A44: Øjvind Hulgaard - Jesper Gad
A45: Niels Krøjgaard - Henrik Caspersen - H C Graversen

Sheet RR1
A1: Multi, RR1
E3: 1 | F3: 2 | G3: 3 | H3: 4 | I3: 5 | J3: 6 | K3: 7 | L3: 8 | M3: 9 | N3: 10 | O3: 11 | P3: 12 | Q3: 13 | R3: 14 | T3: Total | U3: Placering
A5: Jan Pedersen - Nils Mønsted | T5: =AVERAGE(E5:R5) -> 
A6: Camilla Bo Krefeld - Johan Hammelev | T6: =AVERAGE(E6:R6) -> 
A8: Ricardo Mirasola - Jan Kølbæk | T8: =AVERAGE(E8:R8) -> 
A9: Marlene Henneberg - J.O Henneberg | T9: =AVERAGE(E9:R9) -> 
A11: Lida Hulgaard - Øjvind Hulgaard | T11: =AVERAGE(E11:R11) -> 
A12: Jesper Bechsgaard - Anders Handberg Sørensen | T12: =AVERAGE(E12:R12) -> 
A14: Morten Bilde - Søren Cilleborg Bilde | T14: =AVERAGE(E14:R14) -> 
A15: Emil Jepsen - Peter Jepsen | T15: =AVERAGE(E15:R15) -> 
A17: Jørgen Cilleborg Hansen - Steen Schou | T17: =AVERAGE(E17:R17) -> 
A18: H K Sørensen - Niels Henriksen | T18: =AVERAGE(E18:R18) -> 
A20: Asger Bruhn - Per Ebdrup | T20: =AVERAGE(E20:R20) -> 
A21: Martin Klausen - Palle Jensen | T21: =AVERAGE(E21:R21) -> 
A23: Nikolaj Krefeld Hammelev - Lars Peter Damgaard | T23: =AVERAGE(E23:R23) -> 
A24: Kresten Roland Johansen - Troels Buus Thomsen | T24: =AVERAGE(E24:R24) -> 
A26: Henrik Caspersen - Niels Krøjgaard | T26: =AVERAGE(E26:R26) -> 
A27: Jens Kofoed - Emil Buus Thomsen | T27: =AVERAGE(E27:R27) -> 

Sheet Imp Par
A1: IMP Par
B4: 1 | C4: 2 | D4: 3 | E4: 4 | F4: 5 | I4: Placering
A5: H K Sørensen - Niels Henriksen | H5: =SUM(B5:F5) -> 0 | I5: 1
A6: Henrik Caspersen - Niels Krøjgaard | H6: 0 | I6: 2
A7: Nikolaj Krefeld Hammelev - Lars Peter Damgaard | H7: 0 | I7: 3
A8: Jens Kofoed - Emil Buus Thomsen | H8: 0 | I8: 4
A9: Emil Jepsen - Peter Jepsen | H9: 0 | I9: 5
A10: Camilla Bo Krefeld - Johan Hammelev | H10: 0 | I10: 6
A11: Ricardo Mirasola - Jan Kølbæk | H11: 0 | I11: 7
A12: Jørgen Cilleborg Hansen - Steen Schou | H12: 0 | I12: 8
A13: Jan Pedersen - Nils Mønsted | H13: 0 | I13: 9
A14: Marlene Henneberg - J.O Henneberg | H14: 0 | I14: 10
A15: Kresten Roland Johansen - Troels Buus Thomsen | H15: 0 | I15: 11
A16: Morten Bilde - Søren Cilleborg Bilde | H16: 0 | I16: 12
A17: Lida Hulgaard - Øjvind Hulgaard | H17: 0 | I17: 13
A18: Jesper Bechsgaard - Anders Handberg Sørensen | H18: 0 | I18: 14
A19: Asger Bruhn - Per Ebdrup | H19: 0 | I19: 15
A20: Martin Klausen - Palle Jensen | H20: 0 | I20: 16
B21: =SUM(B5:B20) -> 0 | C21: =SUM(C5:C20) -> 0 | D21: 0 | E21: 0 | F21: 0 | H21: =SUM(H5:H20) -> 0

Sheet RR2
A1: Multi, RR2
E3: 1 | F3: 2 | G3: 3 | H3: 4 | I3: 5 | J3: 6 | K3: 7 | L3: 8 | M3: 9 | N3: 10 | O3: 11 | P3: 12 | Q3: 13 | R3: 14 | T3: Total | U3: Placering
A5: Jan Pedersen - Nils Mønsted | T5: =AVERAGE(E5:R5) -> 
A6: Camilla Bo Krefeld - Johan Hammelev | T6: =AVERAGE(E6:R6) -> 
A8: Ricardo Mirasola - Jan Kølbæk | T8: =AVERAGE(E8:R8) -> 
A9: Marlene Henneberg - J.O Henneberg | T9: =AVERAGE(E9:R9) -> 
A11: Lida Hulgaard - Øjvind Hulgaard | T11: =AVERAGE(E11:R11) -> 
A12: Jesper Bechsgaard - Anders Handberg Sørensen | T12: =AVERAGE(E12:R12) -> 
A14: Morten Bilde - Søren Cilleborg Bilde | T14: =AVERAGE(E14:R14) -> 
A15: Emil Jepsen - Peter Jepsen | T15: =AVERAGE(E15:R15) -> 
A17: Jørgen Cilleborg Hansen - Steen Schou | T17: =AVERAGE(E17:R17) -> 
A18: H K Sørensen - Niels Henriksen | T18: =AVERAGE(E18:R18) -> 
A20: Asger Bruhn - Per Ebdrup | T20: =AVERAGE(E20:R20) -> 
A21: Martin Klausen - Palle Jensen | T21: =AVERAGE(E21:R21) -> 
A23: Nikolaj Krefeld Hammelev - Lars Peter Damgaard | T23: =AVERAGE(E23:R23) -> 
A24: Kresten Roland Johansen - Troels Buus Thomsen | T24: =AVERAGE(E24:R24) -> 
A26: Henrik Caspersen - Niels Krøjgaard | T26: =AVERAGE(E26:R26) -> 
A27: Jens Kofoed - Emil Buus Thomsen | T27: =AVERAGE(E27:R27) -> 

Sheet Hold i alt
A1: Klub 32 - Hold 2023/24
B5: RR1 | C5: RR2 | D5: Total | E5: Placering
D6: =SUM(B6:C6) -> 0 | E6: 1
D7: 0 | E7: 2
D8: 0 | E8: 3
D9: 0 | E9: 4
D10: 0 | E10: 5
D11: 0 | E11: 6
D12: 0 | E12: 7
D13: 0 | E13: 8

Sheet Slutspil
A1: SLUTSPIL
E4: 1 | F4: 2 | G4: 3 | H4: 4 | I4: 5 | J4: 6 | K4: 7 | L4: 8 | N4: Total | O4: Placering
A6: Jan Pedersen - Nils Mønsted | N6: =AVERAGE(E6:L6) -> 
A7: Camilla Bo Krefeld - Johan Hammelev | N7: =AVERAGE(E7:L7) -> 
A9: Ricardo Mirasola - Jan Kølbæk | N9: =AVERAGE(E9:L9) -> 
A10: Marlene Henneberg - J.O Henneberg
A12: Lida Hulgaard - Øjvind Hulgaard | N12: =AVERAGE(E12:L12) -> 
A13: Jesper Bechsgaard - Anders Handberg Sørensen
A15: Morten Bilde - Søren Cilleborg Bilde | N15: =AVERAGE(E15:L15) -> 
A16: Emil Jepsen - Peter Jepsen
A18: Jørgen Cilleborg Hansen - Steen Schou | N18: =AVERAGE(E18:L18) -> 
A19: H K Sørensen - Niels Henriksen
A21: Asger Bruhn - Per Ebdrup | N21: =AVERAGE(E21:L21) -> 
A22: Martin Klausen - Palle Jensen
A24: Nikolaj Krefeld Hammelev - Lars Peter Damgaard | N24: =AVERAGE(E24:L24) -> 
A25: Kresten Roland Johansen - Troels Buus Thomsen
A27: Henrik Caspersen - Niels Krøjgaard | N27: =AVERAGE(E27:L27) -> 
A28: Jens Kofoed - Emil Buus Thomsen

Sheet Par
A1: Par
B3: 1.aften | C3: 2.aften | D3: 3.aften | E3: 4.aften | G3: Sum | I3: Placering
A5: Camilla Bo Krefeld - Johan Hammelev | B5: 45.9 | C5: 42 | D5: 31 | G5: =SUM(B5:F5) -> 118.9 | I5: 1
A6: Henrik Caspersen - Niels Krøjgaard | B6: 36.4 | C6: 19 | D6: 34 | G6: 89.4 | I6: 2
A7: H K Sørensen - Niels Henriksen | B7: -2.9 | C7: 53 | D7: 12 | G7: 62.1 | I7: 3
A8: Nikolaj Krefeld Hammelev - Lars Peter Damgaard | B8: 30.3 | C8: 25 | D8: -16 | G8: 39.3 | I8: 4
A9: Jørgen Cilleborg Hansen - Steen Schou | B9: 3.1 | C9: 13 | D9: 22 | G9: 38.1 | I9: 5
A10: Morten Bilde - Søren Cilleborg Bilde | B10: -4.6 | C10: -14 | D10: 49 | G10: 30.4 | I10: 6
A11: Jens Kofoed - Emil Buus Thomsen | B11: 5.5 | C11: 25 | D11: -22 | G11: 8.5 | I11: 7
A12: Emil Jepsen - Peter Jepsen | B12: -2.6 | C12: 32 | D12: -27 | G12: 2.4 | I12: 8
A13: Marlene Henneberg - J.O Henneberg | B13: -8.7 | C13: -3 | D13: 12 | G13: 0.3 | I13: 9
A14: Jesper Bechsgaard - Anders Handberg Sørensen | B14: 5.4 | C14: -10 | D14: -4 | G14: -8.6 | I14: 10
A15: Jan Pedersen - Nils Mønsted | B15: -13.1 | C15: 0 | D15: 3 | G15: -10.1 | I15: 11
A16: Ricardo Mirasola - Jan Kølbæk | B16: 1.4 | C16: -26 | D16: 1 | G16: -23.6 | I16: 12
A17: Lida Hulgaard - Øjvind Hulgaard | B17: 19.3 | C17: -47 | D17: -5 | G17: -32.7 | I17: 13
A18: Kresten Roland Johansen - Troels Buus Thomsen | B18: 2.9 | C18: -21 | D18: -30 | G18: -48.1 | I18: 14
A19: Asger Bruhn - Per Ebdrup | B19: -46.3 | C19: -45 | D19: -30 | G19: -121.3 | I19: 15
A20: Martin Klausen - Palle Jensen | B20: -70.6 | C20: -43 | D20: -30 | G20: -143.6 | I20: 16
B22: =SUM(B5:B21) -> 1.4 | C22: =SUM(C5:C21) -> 0 | D22: =SUM(D5:D21) -> 0 | E22: 0 | G22: 1.4

Sheet Grand prix
A1: Grand prix klub 32 (2023-2024)
F3: Intro hold | G3: RR 1 | H3: IMP1 | I3: RR2 | J3: Slutspil | K3: Par | M3: Total | O3: Placering
A5: Henrik Caspersen - Niels Krøjgaard | F5: =Intro!X5*4 -> 4 | M5: =SUM(F5:L5) -> 4 | O5: 1
A6: Camilla Bo Krefeld - Johan Hammelev | F6: =Intro!X23*4 -> 8 | M6: =SUM(F6:L6) -> 8 | O6: 2
A7: H K Sørensen - Niels Henriksen | F7: =Intro!X6*4 -> 12 | M7: =SUM(F7:L7) -> 12 | O7: 3
A8: Nikolaj Krefeld Hammelev - Lars Peter Damgaard | F8: =Intro!X15*4 -> 16 | M8: =SUM(F8:L8) -> 16 | O8: 4
A9: Jan Pedersen - Nils Mønsted | F9: =Intro!X27*4 -> 20 | M9: =SUM(F9:L9) -> 20 | O9: 5
A10: Emil Jepsen - Peter Jepsen | F10: =Intro!X18*4 -> 24 | M10: =SUM(F10:L10) -> 24 | O10: 6
A11: Morten Bilde - Søren Cilleborg Bilde | F11: =Intro!X8*4 -> 28 | M11: =SUM(F11:L11) -> 28 | O11: 7
A12: Asger Bruhn - Benny Marquart | F12: =Intro!X12*4 -> 32 | M12: =SUM(F12:L12) -> 32 | O12: 8
A13: Lida Hulgaard - Øjvind Hulgaard | F13: =Intro!X24*4 -> 36 | M13: =SUM(F13:L13) -> 36 | O13: 9
A14: Jørgen Cilleborg Hansen - Steen Schou | F14: =Intro!X11*4 -> 40 | M14: =SUM(F14:L14) -> 40 | O14: 10
A15: Ricardo Mirasola - Jan Kølbæk | F15: =Intro!X9*4 -> 44 | M15: =SUM(F15:L15) -> 44 | O15: 11
A16: Jesper Bechsgaard - Anders Handberg Sørensen | F16: =Intro!X26*4 -> 48 | M16: =SUM(F16:L16) -> 48 | O16: 12
A17: Marlene Henneberg - J.O Henneberg | F17: =Intro!X14*4 -> 52 | M17: =SUM(F17:L17) -> 52 | O17: 13
A18: Kresten Roland Johansen - Troels Buus Thomsen | F18: =Intro!X21*4 -> 56 | M18: =SUM(F18:L18) -> 56 | O18: 14
A19: Jens Kofoed - Emil Buus Thomasn | F19: =Intro!X20*4 -> 60 | M19: =SUM(F19:L19) -> 60 | O19: 15
A20: Martin Klausen - Palle Jensen | F20: =Intro!X17*4 -> 64 | M20: =SUM(F20:L20) -> 64 | O20: 16
